Cogmind - Beta 12 @@@ ROGUE MODE // 2023.03.10 @ 17:45:05 Player: ArabianSandBoa Result: Self-destructed Performance ------------- Evolutions (5) 2500 Regions Visited (10) 2000 Robots Destroyed (62) 310 Value Destroyed (1322) 1322 Prototype IDs (19) 380 Alien Tech Used (0) 0 Bonus (1856) 1856 TOTAL SCORE: 8368 Bonus ------- High Alert Combat Kills 23 Follower Combat Kills 733 Entered DSFs 500 Met Imprinter 300 Was Imprinted 300 Cogmind --------- Core Integrity 954/1000 Matter 192/300 Energy 50/100 System Corruption 0% Temperature Cool (0) Movement Core (400) Ox7 Location -5/DSF Parts ------- > --- POWER (2) -------- (None) > --- PROPULSION (6) --- Cesium-ion Thruster Cesium-ion Thruster Cesium-ion Thruster > --- UTILITY (7) ------ Medium Storage Unit Advanced Weight Redist. System Advanced Sensor Array 0b10 Decoder Chip [Scout] Makeshift Hacking Suite System Shield Makeshift System Shield > --- WEAPON (2) ------- Thermoblaster Molecular Scythe > --- INVENTORY (10) --- Advanced Heavy Siege Treads Centrium Light Armor Plating Centrium Light Armor Plating Experimental Shield Generator Cooled Plasma Cannon Hypervelocity Coil Gun RU-N14's Throwing Claymores (8) Ionic Axe Peak State ------------ > --- POWER ------------ Fission Core Fission Core > --- PROPULSION ------- Cesium-ion Thruster Cesium-ion Thruster Cesium-ion Thruster Cesium-ion Thruster Cesium-ion Thruster > --- UTILITY ---------- Huge Storage Unit Experimental Optical Array Advanced Sensor Array Centrium Light Armor Plating Makeshift Hacking Suite Makeshift System Shield > --- WEAPON ----------- Gauss Rifle Molecular Scythe > --- INVENTORY -------- Angular Momentum Engine Angular Momentum Engine Armored Treads Compact Wheel Compact Wheel Compact Wheel Compact Wheel Experimental Power Amplifier Experimental Power Amplifier Experimental Heat Sink Energy Well Precision Energy Filter Centrium Light Armor Plating Plasma Rifle Plasma Rifle Autogun Thermoblaster Thermoblaster RU-N14's Throwing Claymores RU-N14's Throwing Claymores RU-N14's Throwing Claymores RU-N14's Throwing Claymores Molecular Scythe GAL Module [Rating: 81] Favorites ----------- Power Fission Core Engine Light Angular Momentum Engine Power Core Fission Core Propulsion Flight Unit Treads Medium Treads Leg Aluminum Leg Wheel Compact Wheel Flight Unit Flight Unit Utility Experimental Optical Array Device Advanced Sensor Array Storage Small Storage Unit Processor Experimental Optical Array Hackware Makeshift Hacking Suite Protection Makeshift Ablative Armor Weapon Molecular Scythe Energy Gun EM Pulse Gun Energy Cannon Advanced Beam Cannon Ballistic Gun Gauss Rifle Launcher Grenade Launcher Special Weapon RU-N14's Throwing Claymores Impact Weapon Shock Maul Slashing Weapon Molecular Scythe Build | -11 -10 -9 -9 -7 -6 -6 -5 -5 -5 -5 ------- Run | Jun Mat Mat Min Zio Pro Fac Fac Was Fac DSF Slots Evolved 10 | . . 2 . . . 6 2 . . . Power 1 | . . . . . . 1 . . . . Propulsion 4 | . . 2 . . . 1 1 . . . Utility 5 | . . . . . . 4 1 . . . Weapon . | . . . . . . . . . . . Parts Attached 114 | . 7 15 . 7 14 54 14 1 . 2 Power 11 | . . 1 . . 3 6 1 . . . Engine 7 | . . 1 . . 1 4 1 . . . Core 4 | . . . . . 2 2 . . . . Reactor . | . . . . . . . . . . . Propulsion 25 | . 4 4 . 1 3 13 . . . . Treads 4 | . 1 . . . 1 2 . . . . Leg . | . . . . . . . . . . . Wheel 5 | . 1 . . . . 4 . . . . Hover . | . . . . . . . . . . . Flight 16 | . 2 4 . 1 2 7 . . . . Utility 40 | . . 1 . 1 6 21 9 1 . 1 Device 18 | . . 1 . . 3 5 8 1 . . Storage 3 | . . . . . 1 2 . . . . Processor 7 | . . . . . 1 5 1 . . . Hackware 7 | . . . . 1 . 5 . . . 1 Protection 5 | . . . . . 1 4 . . . . Artifact . | . . . . . . . . . . . Weapon 38 | . 3 9 . 5 2 14 4 . . 1 Energy Gun 7 | . 2 5 . . . . . . . . Energy Cannon 3 | . . 1 . . . 2 . . . . Ballistic Gun 8 | . . 2 . 4 . 2 . . . . Ballistic Cannon . | . . . . . . . . . . . Launcher 5 | . 1 1 . . . 2 . . . 1 Special Weapon 2 | . . . . . . 2 . . . . Impact Weapon 1 | . . . . . . 1 . . . . Slashing Weapon 12 | . . . . 1 2 5 4 . . . Piercing Weapon . | . . . . . . . . . . . Special Melee Weapon . | . . . . . . . . . . . Unidentified Prototypes 18 | . . 4 . . 6 6 1 1 . . Corrupted Parts 1 | . . 1 . . . . . . . . System Corruption 2 | . . 2 . . . . . . . . Parts Lost 14 | . 2 6 . . 1 4 1 . . . Power 1 | . . . . . 1 . . . . . Propulsion 8 | . 1 3 . . . 3 1 . . . Utility 1 | . . . . . . 1 . . . . Weapon 4 | . 1 3 . . . . . . . . Highest Loss Streak 3 | . 1 3 . . 1 2 1 . . . To Critical Strikes . | . . . . . . . . . . . Average Slot Usage (%) 89 | . 65 55 77 92 99 88 79 64 64 67 Engine 2 | . . 2 11 11 . 2 4 5 5 5 Core 5 | . . . . . 10 4 . . . . Treads 7 | . 10 8 . . 10 3 4 . . . Wheel 1 | . 10 2 . . . 1 . . . . Flight 26 | . 6 3 33 41 33 24 22 17 17 17 Device 3 | . . 5 11 7 . 7 13 11 11 11 Storage 8 | . 14 11 11 11 10 3 5 5 5 5 Processor 5 | . . . . . 6 8 8 5 5 5 Hackware 7 | . . . . 3 4 14 11 11 11 14 Energy Gun 1 | . 13 11 . . . . . . . . Ballistic Gun 3 | . . . 11 9 4 2 . . . . Slashing Weapon 10 | . . . . 7 17 8 4 5 5 5 Naked Turns . | . . . . . . . . . . . Heaviest Build 121 | 6 10 16 12 17 98 121 24 24 24 24 Greatest Support 64 | 20 20 20 12 20 28 64 24 24 24 24 Greatest Overweight (x) 7 | . 1 5 . . 3 7 . . . . Average Overweight (x) . | . . . . . . . . . . . Largest Inventory Capacity 25 | 8 8 8 8 8 25 25 10 10 10 10 Average Capacity 14 | 8 8 8 8 8 17 14 10 10 10 10 Most Carried 25 | 7 8 8 8 8 25 25 10 10 10 10 Average Carried 12 | 6 6 7 8 7 13 13 9 9 10 9 Final Capacity 25 | 8 8 8 8 8 25 10 10 10 10 10 Final Carried 25 | 7 7 8 8 8 25 10 9 10 10 9 Class Distribution -------------------- 49% | Mutant 17% | Scavenger-Mutant 16% | Hacker-Sprinter 8% | Derelict-Mutant 7% | Hacker-Mutant Dominant Class ---------------- Mutant | -10/Materials Mutant | -9/Materials Mutant | -9/Mines Mutant | -7/Zion Mutant | -6/Proximity Caves Hacker-Sprinter | -6/Factory Hacker-Mutant | -5/Factory Hacker-Sprinter | -5/Waste Hacker-Sprinter | -5/Factory Hacker-Sprinter | -5/DSF Resources | -11 -10 -9 -9 -7 -6 -6 -5 -5 -5 -5 ----------- Run | Jun Mat Mat Min Zio Pro Fac Fac Was Fac DSF Matter Collected 1591 | 200 55 177 . 77 384 581 117 . . . Remotely . | . . . . . . . . . . . Salvage Created 2182 | . 380 354 . . 261 1167 20 . . . Parts 122 | . 28 17 . . 11 64 2 . . . Haulers Intercepted 6 | . 2 2 . . . 2 . . . . Recyclers Shooed 5 | . 1 1 . . . 3 . . . . Parts Field Recycled . | . . . . . . . . . . . Retrieved Matter . | . . . . . . . . . . . Parts Self-Destructed 10 | . . . . . 10 . . . . . Prevented 3 | . . . . . 3 . . . . . Kills | -11 -10 -9 -9 -7 -6 -6 -5 -5 -5 -5 ------- Run | Jun Mat Mat Min Zio Pro Fac Fac Was Fac DSF Combat Hostiles Destroyed 29 | . 10 8 . . 1 10 . . . . Melee 2 | . . . . . 1 1 . . . . Guns 6 | . . 4 . . . 2 . . . . Cannons 2 | . . 1 . . . 1 . . . . AOE 19 | . 10 3 . . . 6 . . . . Classes Destroyed 15 | . 8 1 . . 2 4 . . . . Worker 2 | . 1 . . . . 1 . . . . Builder 7 | . 3 . . . . 4 . . . . Hauler 6 | . 2 2 . . . 2 . . . . Recycler 7 | . 1 1 . . . 5 . . . . Minesweeper 1 | . . . . . 1 . . . . . Operator 7 | . 2 . . . . 4 1 . . . Watcher 3 | . 2 . . . . 1 . . . . Swarmer 10 | . 3 3 . . 1 3 . . . . Cutter 3 | . . . . . . 3 . . . . Grunt 9 | . 7 2 . . . . . . . . Sentry 3 | . . 3 . . . . . . . . Hunter 1 | . . . . . . 1 . . . . Programmer 2 | . . . . . . 2 . . . . Heavy 1 | . . . . . . 1 . . . . Samaritan 2 | . . . . . 2 . . . . . Best Kill Streak 11 | . 9 5 . . 1 11 1 . . . Combat Bots Only 5 | . 5 5 . . 1 4 . . . . Max Kills in Single Turn 9 | . 3 2 . . 1 9 1 . . . Gunslinging . | . . . . . . . . . . . Exploded 4 | . 2 2 . . . 4 . . . . Melee 1 | . . . . . 1 1 . . . . Uniques/NPCs Destroyed . | . . . . . . . . . . . Combat | -11 -10 -9 -9 -7 -6 -6 -5 -5 -5 -5 -------- Run | Jun Mat Mat Min Zio Pro Fac Fac Was Fac DSF Damage Taken 1687 | . 268 470 27 . 254 576 20 . . 72 Core 457 | . 99 50 17 . 53 192 . . . 46 Absorbed by Shields . | . . . . . . . . . . . Core Remaining (%) 76 | 100 60 . . . 70 77 . . . . Volleys Fired 87 | . 35 23 . 1 3 25 . . . . Largest 2 | . 2 2 . 1 1 2 . . . . Hottest 113 | . 80 113 . 23 28 113 . . . . Shots Fired 105 | . 38 33 . 1 3 30 . . . . Gun 64 | . 16 22 . 1 3 22 . . . . Cannon 9 | . . 5 . . . 4 . . . . Launcher 30 | . 22 6 . . . 2 . . . . Special 2 | . . . . . . 2 . . . . Kinetic 27 | . . 1 . 1 3 22 . . . . Thermal 18 | . 2 12 . . . 4 . . . . Explosive 30 | . 22 6 . . . 2 . . . . Electromagnetic 30 | . 14 14 . . . 2 . . . . Robot Hit Streak 12 | . 4 12 . . 5 8 . . . . Robot Miss Streak 3 | . 3 2 . . . 3 . . . . Penetration Max . | . . . . . . . . . . . Secondary Targets . | . . . . . . . . . . . Shots Hit Robots 86 | . 10 23 . . 9 43 1 . . . Core Hits 94 | . 40 19 . . 4 30 1 . . . Critical Kills . | . . . . . . . . . . . Critical Parts Destroyed . | . . . . . . . . . . . Critical Strikes 4 | . 1 2 . . . 1 . . . . Burn 2 | . . 2 . . . . . . . . Corrupt 1 | . 1 . . . . . . . . . Sever 1 | . . . . . . 1 . . . . Melee Attacks 113 | . . . . 1 13 79 18 . . 2 Impact . | . . . . . . . . . . . Slashing 113 | . . . . 1 13 79 18 . . 2 Piercing . | . . . . . . . . . . . Sneak Attacks 14 | . . . . . 3 10 1 . . . Combat Hostiles . | . . . . . . . . . . . Follow-up Attacks 4 | . . . . . . 4 . . . . Damage Inflicted 5819 | . 1208 771 . . 502 3258 80 . . . Guns 767 | . 137 273 . . 42 315 . . . . Cannons 136 | . . 40 . . . 96 . . . . Explosions 2435 | . 1071 458 . . . 906 . . . . Melee 2461 | . . . . . 460 1921 80 . . . Ramming . | . . . . . . . . . . . Kinetic 370 | . . 13 . . 42 315 . . . . Thermal 615 | . 72 175 . . . 368 . . . . Explosive 2002 | . 999 426 . . . 577 . . . . Electromagnetic 351 | . 137 157 . . . 57 . . . . Impact . | . . . . . . . . . . . Slashing 2481 | . . . . . 460 1941 80 . . . Piercing . | . . . . . . . . . . . Highest Corruption 6 | . . 6 6 6 . 3 . . . . Average Corruption 2 | . . 3 6 6 . 2 . . . . Corruption Purged . | . . . . . . . . . . . Corruption Blocked . | . . . . . . . . . . . Effects 12 | . . 1 1 1 . 9 . . . . Message Errors 1 | . . . . . . 1 . . . . Matter Fused 4 | . . 1 . . . 3 . . . . Heat Flow Errors 3 | . . . . 1 . 2 . . . . Energy Discharges 2 | . . . . . . 2 . . . . Data Loss (major) 2 | . . . 1 . . 1 . . . . Overload Shots . | . . . . . . . . . . . Overflow Damage 764 | . 9 30 . . 162 563 . . . . Projectiles . | . . . . . . . . . . . Explosions 65 | . 9 30 . . . 26 . . . . Melee 699 | . . . . . 162 537 . . . . Knockbacks . | . . . . . . . . . . . Impact . | . . . . . . . . . . . Kinetic . | . . . . . . . . . . . Secondary . | . . . . . . . . . . . Self-Inflicted Damage 30 | . 27 3 . . . . . . . . Shots 3 | . 2 1 . . . . . . . . Rammed . | . . . . . . . . . . . Targets Rammed . | . . . . . . . . . . . Kicked . | . . . . . . . . . . . Crushed . | . . . . . . . . . . . Highest Temperature 284 | . 9 200 1 284 4 152 . . . . Average Temperature 64 | . 4 79 1 131 4 36 . . . . Received Heat Transfer 291 | . 99 141 15 . 9 18 9 . . . Siege Activations . | . . . . . . . . . . . Robots Corrupted . | . . . . . . . . . . . Combat Hostiles . | . . . . . . . . . . . Parts Fried 1 | . 1 . . . . . . . . . Impact Corruptions . | . . . . . . . . . . . Robots Melted . | . . . . . . . . . . . Combat Hostiles . | . . . . . . . . . . . Parts Melted 4 | . 1 2 . . . 1 . . . . Heat Transferred 905 | . 100 494 . . . 311 . . . . Parts Sabotaged . | . . . . . . . . . . . Parts Stolen . | . . . . . . . . . . . Parts Stripped . | . . . . . . . . . . . Power Chain Reactions 3 | . 2 1 . . . . . . . . Missiles Intercepted . | . . . . . . . . . . . Alert | -11 -10 -9 -9 -7 -6 -6 -5 -5 -5 -5 ------- Run | Jun Mat Mat Min Zio Pro Fac Fac Was Fac DSF Peak Influence 1197 | . 422 417 187 . . 1197 692 239 160 131 Initial 545 | . . 178 162 . . . 545 239 160 114 Average 279 | . 210 273 170 . . 230 627 232 160 120 Maximum Alert Level 4 | . 2 2 . . . 4 2 1 . . Low Security (%) 47 | 100 39 17 100 . . 65 . . 100 100 Level 1 24 | . 41 77 . . . 12 . 100 . . Level 2 21 | . 19 5 . . . 10 100 . . . Level 3 4 | . . . . . . 8 . . . . Level 4 1 | . . . . . . 2 . . . . Level 5 . | . . . . . . . . . . . High Security . | . . . . . . . . . . . Max Security . | . . . . . . . . . . . Squads Dispatched 13 | . 1 . . . . 9 2 . . 1 Investigation 2 | . 1 . . . . . 1 . . . Extermination 3 | . . . . . . 3 . . . . Reinforcement 7 | . . . . . . 6 . . . 1 Assault 1 | . . . . . . . 1 . . . Garrison . | . . . . . . . . . . . Intercept . | . . . . . . . . . . . Searches Triggered . | . . . . . . . . . . . Construction Impeded 1 | . . . . . . 1 . . . . Haulers Reinforced 1 | . . . . . . 1 . . . . Active Scanning Responses . | . . . . . . . . . . . Cargo Convoy Interrupts . | . . . . . . . . . . . Stealth | -11 -10 -9 -9 -7 -6 -6 -5 -5 -5 -5 --------- Run | Jun Mat Mat Min Zio Pro Fac Fac Was Fac DSF Distress Signals 6 | . 2 1 . . . 3 . . . . Communications Jammed 4 | . . . . . . . 4 . . . Distress Signals 4 | . . . . . . . 4 . . . Times Spotted 87 | . 17 13 3 . 6 27 11 5 . 5 Peak Tracking Total 7 | . 7 7 3 . 3 6 7 5 . 5 Tactical Retreats 7 | . . . 1 . 1 2 2 . . 1 Traps | -11 -10 -9 -9 -7 -6 -6 -5 -5 -5 -5 ------- Run | Jun Mat Mat Min Zio Pro Fac Fac Was Fac DSF Traps Triggered 3 | . . . . . . 1 1 . . 1 Indirectly . | . . . . . . . . . . . Trap Hack Attempts . | . . . . . . . . . . . Triggered . | . . . . . . . . . . . Disarmed . | . . . . . . . . . . . Reprogrammed . | . . . . . . . . . . . Reused 1 | . . . 1 . . . . . . . Traps Extracted . | . . . . . . . . . . . Installed 3 | . . . 3 . . . . . . . Triggered 1 | . . . 1 . . . . . . . Most Traps Carried 5 | . . . . . 5 . . . . . Machines | -11 -10 -9 -9 -7 -6 -6 -5 -5 -5 -5 ---------- Run | Jun Mat Mat Min Zio Pro Fac Fac Was Fac DSF Machines Disabled 5 | . 2 . . . . 3 . . . . Max in Single Turn 1 | . 1 . . . . 1 . . . . Machines Repaired . | . . . . . . . . . . . Machines Sabotaged . | . . . . . . . . . . . Overloaded Fab Kills . | . . . . . . . . . . . Hacking | -11 -10 -9 -9 -7 -6 -6 -5 -5 -5 -5 --------- Run | Jun Mat Mat Min Zio Pro Fac Fac Was Fac DSF Machines Accessed 11 | . 4 2 . 1 . 3 . . 1 . Terminals 4 | . 3 . . . . . . . 1 . Fabricators . | . . . . . . . . . . . Repair Stations . | . . . . . . . . . . . Recycling Units 6 | . 1 2 . . . 3 . . . . Scanalyzers . | . . . . . . . . . . . Garrison Access . | . . . . . . . . . . . Total Hacks 30 | . 11 4 . 2 . 12 . . 1 . Successful 16 | . 2 4 . 2 . 7 . . 1 . Failed 14 | . 9 . . . . 5 . . . . Catastrophic . | . . . . . . . . . . . Database Lockouts . | . . . . . . . . . . . Manual 71 | . 9 1 . . . 40 18 . 3 . Terminals 11 | . 10 . . . . . . . 1 . Fabricators . | . . . . . . . . . . . Repair Stations . | . . . . . . . . . . . Recycling Units 17 | . 1 4 . . . 12 . . . . Scanalyzers . | . . . . . . . . . . . Garrison Access . | . . . . . . . . . . . Terminal Hacks 3 | . . . . 2 . . . . 1 . Part Schematic 2 | . . . . 2 . . . . . . Open DSF 1 | . . . . . . . . . 1 . Fabricator Hacks . | . . . . . . . . . . . Repair Station Hacks . | . . . . . . . . . . . Recycling Unit Hacks 6 | . 1 3 . . . 2 . . . . Report Inventory 5 | . 1 2 . . . 2 . . . . Retrieve Components 1 | . . 1 . . . . . . . . Scanalyzer . | . . . . . . . . . . . Garrison Access Hacks . | . . . . . . . . . . . Unauthorized Hacks 7 | . 1 1 . . . 5 . . . . Terminals 1 | . 1 . . . . . . . . . Botnet 1 | . 1 . . . . . . . . . Fabricators . | . . . . . . . . . . . Repair Stations . | . . . . . . . . . . . Recycling Units 6 | . . 1 . . . 5 . . . . Monitor 1 | . . . . . . 1 . . . . Reject 2 | . . . . . . 2 . . . . Mask 3 | . . 1 . . . 2 . . . . Scanalyzers . | . . . . . . . . . . . Garrison Access . | . . . . . . . . . . . Data Cores Recovered 3 | . 2 . . . . 1 . . . . Used 1 | . 1 . . . . . . . . . Hacking Detections 7 | . 3 1 . . . 3 . . . . Full Trace Events 1 | . 1 . . . . . . . . . Feedback Events . | . . . . . . . . . . . Feedback Blocked . | . . . . . . . . . . . Robot Schematics Acquired 6 | . . . . 2 . 4 . . . . Robots Built . | . . . . . . . . . . . Authchips . | . . . . . . . . . . . Time . | . . . . . . . . . . . Total Robot Build Rating . | . . . . . . . . . . . Part Schematics Acquired 17 | . . . . 17 . . . . . . Parts Built . | . . . . . . . . . . . Authchips . | . . . . . . . . . . . Time . | . . . . . . . . . . . Total Part Build Rating . | . . . . . . . . . . . Parts Repaired . | . . . . . . . . . . . Time . | . . . . . . . . . . . Parts Recycled . | . . . . . . . . . . . Recycled Matter . | . . . . . . . . . . . Retrieved Matter . | . . . . . . . . . . . Retrieved Components 6 | . . 6 . . . . . . . . Parts Scanalyzed . | . . . . . . . . . . . Part Schematics Acquired . | . . . . . . . . . . . Parts Damaged . | . . . . . . . . . . . Bothacking | -11 -10 -9 -9 -7 -6 -6 -5 -5 -5 -5 ------------ Run | Jun Mat Mat Min Zio Pro Fac Fac Was Fac DSF Used RIF Installer . | . . . . . . . . . . . Robots Hacked . | . . . . . . . . . . . Non-combat . | . . . . . . . . . . . Combat . | . . . . . . . . . . . Robot Hacks Applied . | . . . . . . . . . . . Relay Couplers Released . | . . . . . . . . . . . Fabnet Peak Effective % . | . . . . . . . . . . . Robots Rewired . | . . . . . . . . . . . Allies Hacked . | . . . . . . . . . . . Hacks Repelled . | . . . . . . . . . . . Allies | -11 -10 -9 -9 -7 -6 -6 -5 -5 -5 -5 -------- Run | Jun Mat Mat Min Zio Pro Fac Fac Was Fac DSF Total Allies 14 | . . . . 4 . 6 4 . . . Largest Group 5 | . . . . 4 4 5 3 1 . . Highest-Rated Group 402 | . . . . 157 157 402 197 85 . . Highest-Rated Ally 96 | . . . . 40 40 96 85 85 . . Zionite Dispatches 5 | . . . . . . 2 3 . . . Heavy 1 | . . . . . . . 1 . . . Light 1 | . . . . . . 1 . . . . Demo 1 | . . . . . . 1 . . . . Melee Resupply 1 | . . . . . . . 1 . . . Infowar Resupply 1 | . . . . . . . 1 . . . Total Orders 5 | . . . . . . . 5 . . . STAY 1 | . . . . . . . 1 . . . ROAM 1 | . . . . . . . 1 . . . DROP 2 | . . . . . . . 2 . . . EXPLORE 1 | . . . . . . . 1 . . . Ally Attacks 119 | . . . . . 19 93 . 7 . . Total Damage 3708 | . . . . . 468 2669 . 571 . . Kills 27 | . . . . . 5 22 . . . . Allies Corrupted . | . . . . . . . . . . . Allies Melted . | . . . . . . . . . . . Intel | -11 -10 -9 -9 -7 -6 -6 -5 -5 -5 -5 ------- Run | Jun Mat Mat Min Zio Pro Fac Fac Was Fac DSF Robot Analysis Total . | . . . . . . . . . . . Derelict Logs Recovered 4 | . . . . 3 1 . . . . . Drone Launches 3 | . . . . . . . 3 . . . Drone Recoveries . | . . . . . . . . . . . Decoded 0b10 Intel 10 | . . . . . . . 8 . 1 1 Traps 8 | . . . . . . . 8 . . . Emergency Access 2 | . . . . . . . . . 1 1 Zionite Intel Received 9 | . . . . . . 6 3 . . . Branch Access 2 | . . . . . . 1 1 . . . Emergency Access 1 | . . . . . . . 1 . . . Guard Positions 1 | . . . . . . 1 . . . . Component Stockpiles 1 | . . . . . . 1 . . . . Unaware Schematics 1 | . . . . . . 1 . . . . Trap Installations 1 | . . . . . . 1 . . . . Depthwide Sectors/0 1 | . . . . . . . 1 . . . Depthwide Sectors/-1 1 | . . . . . . 1 . . . . Exploration | -11 -10 -9 -9 -7 -6 -6 -5 -5 -5 -5 ------------- Run | Jun Mat Mat Min Zio Pro Fac Fac Was Fac DSF Turns Passed 5957 | 2 361 388 47 412 2670 1603 359 56 7 52 Spaces Moved 4926 | 1 300 216 111 818 1202 1602 466 99 21 90 Core 3 | . . 3 . . . . . . . . Treads 1319 | . 106 153 . . 966 94 . . . . Legs 12 | 1 11 . . . . . . . . . Wheels 81 | . . . . . . 81 . . . . Hover . | . . . . . . . . . . . Flight 3511 | . 183 60 111 818 236 1427 466 99 21 90 Fastest Speed 23 | 120 37 34 34 34 34 23 26 29 29 29 Average Speed 91 | 120 83 129 34 34 210 55 42 29 29 29 Slowest Speed 650 | 120 160 300 34 34 400 650 46 29 29 29 Overloaded Moves . | . . . . . . . . . . . Propulsion Burnouts . | . . . . . . . . . . . Robots Hopped 11 | . 1 1 . . . 9 . . . . Cave-ins Triggered 1 | . . . . . . 1 . . . . Exploration Rate (%) 46 | 2 59 31 34 87 97 43 15 73 1 66 Regions Visited 10 Branch Regions 3 Pre-discovered Areas 20 | . . . . 1 1 9 9 . . . Known Exits Taken 1 | . . . . . . . . . 1 . Unknown Exits Taken 7 | 1 1 1 1 1 1 1 . . . . Scrap Searched 6 | . . . . 4 2 . . . . . Spaces Dug 57 | . . . . . . 39 17 . . 1 Terrain Destroyed 183 | . 71 36 . . . 58 17 . . 1 Melee 57 | . . . . . . 39 17 . . 1 Projectile 2 | . . . . . . 2 . . . . AOE 124 | . 71 36 . . . 17 . . . . Terrain Rammed . | . . . . . . . . . . . Walls Destroyed . | . . . . . . . . . . . Machines Disabled . | . . . . . . . . . . . Actions | -11 -10 -9 -9 -7 -6 -6 -5 -5 -5 -5 --------- Run | Jun Mat Mat Min Zio Pro Fac Fac Was Fac DSF Total 6119 | 3 371 288 119 952 1330 2192 605 126 21 112 Wait 666 | . 20 20 6 104 48 361 84 23 . . Move 4897 | . 297 213 110 817 1201 1584 466 98 21 90 Hop 10 | . 1 1 . . . 8 . . . . Pick Up 86 | . 6 7 . 9 28 30 5 1 . . Fast Attach 55 | . 2 9 . 4 11 22 5 1 . 1 Attach 33 | . 3 5 . 2 1 15 6 . . 1 Detach 20 | 2 . 2 . 2 . 7 6 1 . . Swap 26 | . 2 1 . 1 2 17 3 . . . Drop 120 | 1 5 7 . 11 23 59 12 2 . . Fire 87 | . 35 23 . 1 3 25 . . . . Melee 98 | . . . . 1 13 64 18 . . 2 Ram . | . . . . . . . . . . . Kick . | . . . . . . . . . . . Crush . | . . . . . . . . . . . Escape Stasis 18 | . . . . . . . . . . 18 Rewire . | . . . . . . . . . . . Trap 3 | . . . 3 . . . . . . . Miscellaneous . | . . . . . . . . . . . Route ------- -11/Junkyard -10/Materials (discovered 2 exits: *Mat x2) -9/Materials -9/Mines (discovered 2 exits: [*Mat] / *Zio) -7/Zion -6/Proximity Caves -6/Factory (discovered 4 exits: *Fac x2 / Low x2) -5/Factory (discovered 4 exits: *Upp x2 / Ext x2) -5/Waste -5/Factory -5/DSF History --------- Turn | Location | Event 3 | -11/Junkyard | Discovered new exit (range 0) 3 | -11/Junkyard | Entered Materials 48 | -10/Materials | Discovered new exit (range 3) 307 | -10/Materials | Build established: Mutant 329 | -10/Materials | Discovered new exit (range 15) 364 | -10/Materials | Entered another Materials area 364 | -9/Materials | Evolved 2 slots: Propulsion x2 646 | -9/Materials | Discovered new exit (range 14) 714 | -9/Materials | Lost 3 parts (1n2w) 752 | -9/Materials | Entered Mines 756 | -9/Mines | Found a hidden stash of uninstalled traps 792 | -9/Mines | Discovered new exit (range 7) 794 | -9/Mines | A Derelict revealed a hidden shortcut to a safe place 799 | -9/Mines | Entered Zion 807 | -7/Zion | Found GAL Module 834 | -7/Zion | Given A8's code to call for help 850 | -7/Zion | System corruption cleaned by Quarantine Array 921 | -7/Zion | Learned location of Data Miner (-6) 922 | -7/Zion | Learned 4 Factory zone layouts 977 | -7/Zion | Imprinted 979 | -7/Zion | Declared Zion's savior 1035 | -7/Zion | Learned Factory terminal intel 1038 | -7/Zion | Learned 4 Factory zone layouts 1077 | -7/Zion | Found Prototype Special Weapon 1078 | -7/Zion | Found Prototype Special Weapon 1080 | -7/Zion | Found Prototype Special Weapon 1082 | -7/Zion | Found Prototype Special Weapon 1116 | -7/Zion | Discovered new exit (range 16) 1211 | -7/Zion | Entered Proximity Caves 1211 | -6/Proximity Caves | Accompanied by 4 allies 1678 | -6/Proximity Caves | Build established: Scavenger-Mutant 1729 | -6/Proximity Caves | Encountered a Derelict sapper outpost 1901 | -6/Proximity Caves | Discovered new exit (range 15) 2328 | -6/Proximity Caves | Found Prototype Slashing Weapon 2328 | -6/Proximity Caves | Identified Molecular Scythe 2408 | -6/Proximity Caves | Found Molecular Scythe 2587 | -6/Proximity Caves | Build established: Mutant 3881 | -6/Proximity Caves | Entered Factory 3881 | -6/Factory | Accompanied by 4 allies 3881 | -6/Factory | Evolved 6 slots: Power x1, Propulsion x1, Utility x4 3883 | -6/Factory | Loaded intel: 26 terminal locations 4192 | -6/Factory | Build established: Derelict-Mutant 4828 | -6/Factory | Build established: Hacker-Sprinter 4848 | -6/Factory | Retrieved Zion intel report: Unaware Schematics 4855 | -6/Factory | Discovered new exit (range 7) 4879 | -6/Factory | Retrieved Zion intel report: Depthwide Sectors/-1 4880 | -6/Factory | Zion Light squad teleported in 4886 | -6/Factory | Enhanced Grunt warped into view, answering call for help 4887 | -6/Factory | Enhanced Grunt warped into view, answering call for help 4932 | -6/Factory | Retrieved Zion intel report: Trap Installations 5024 | -6/Factory | Retrieved Zion intel report: Guard Positions 5106 | -6/Factory | Identified RU-N14's Throwing Claymores 5224 | -6/Factory | Retrieved Zion intel report: Branch Access 5224 | -6/Factory | Identified exit to Lower Caves 5228 | -6/Factory | Retrieved Zion intel report: Component Stockpiles 5229 | -6/Factory | Zion Demo squad teleported in 5379 | -6/Factory | Crushed by falling debris 5439 | -6/Factory | Terminal network hard line cut 5481 | -6/Factory | Discovered new exit (range 6) 5484 | -6/Factory | Entered another Factory area 5484 | -5/Factory | Evolved 2 slots: Propulsion x1, Utility x1 5499 | -5/Factory | Zion Infowar Resupply teleported in 5576 | -5/Factory | Retrieved Zion intel report: Emergency Access 5580 | -5/Factory | Discovered new exit (range 9) 5614 | -5/Factory | Retrieved Zion intel report: Branch Access 5614 | -5/Factory | Identified exit to Upper Caves 5614 | -5/Factory | Identified exit to Extension 5615 | -5/Factory | Zion Melee Resupply teleported in 5649 | -5/Factory | Build established: Hacker-Mutant 5784 | -5/Factory | First assault squad dispatched 5832 | -5/Factory | Retrieved Zion intel report: Depthwide Sectors/0 5833 | -5/Factory | Zion Heavy squad teleported in 5843 | -5/Factory | Sucked down chute 5843 | -5/Factory | Entered Waste 5846 | -5/Waste | Spotted C-40 Crusher 5846 | -5/Waste | Spotted C-40 Crusher 5847 | -5/Waste | Found Prototype Device 5847 | -5/Waste | Identified Exp. Shield Generator 5851 | -5/Waste | Spotted C-40 Crusher 5875 | -5/Waste | 2 allies followed down the chute 5875 | -5/Waste | Spotted C-40 Crusher 5885 | -5/Waste | Spotted C-40 Crusher 5886 | -5/Waste | Spotted C-40 Crusher 5891 | -5/Waste | Discovered new exit (range 16) 5899 | -5/Waste | Entered Factory 5906 | -5/Factory | Identified exit to DSF 5906 | -5/Factory | Entered DSF 5933 | -5/DSF | Additional patrols routed to DSF 5958 | -5/DSF | Self-destructed Last Messages --------------- 05933_ Field strength at 80. 05934_ >> DECODED: Emergency access location. 05934_ Field strength at 75. 05935_ Field strength at 70. 05936_ Field strength at 65. 05937_ Field strength at 60. 05938_ Field strength at 55. 05939_ Field strength at 50. 05940_ Field strength at 45. 05941_ Field strength at 40. 05942_ Field strength at 35. 05943_ Field strength at 30. 05944_ Field strength at 25. 05945_ Field strength at 20. 05946_ Field strength at 15. 05947_ Field strength at 10. 05948_ Field strength at 5. 05949_ Stasis field depleted. 05953_ Lgt. Angular Momentum Engine severed. 05955_ C-35 Carver destroyed. Map ----- +----------------------------------------------------+ | ???????????????????????????????????????? | | ??????????????????????????????????????## | | ?????????""??????????????????????????#"" | | ?????????#"#?????????????????????????#"# | | ??????####"##???????#########???????##"# | | ??????#"""""######### #########""" | | ??????#"""""## # # # #==##""" | | ????"##"" | | ????""""" | | ?????##"" ##!!# ### ### #==## | | ??????### ###!!# #?# #?# #==### | | ???????## ########## ##+#####?# | | ???????# !!#??????# #????????= | | ???????# !!#??????# #????????= | | ???????## ###??????### ###???????## | | ???????# #????????[ !?????????? | | ???????# #????????[ !?????????? | | ???????# #???????[[ !!????????? | | ??????### ############ ##?????????# | | ??????# ## #!!!### ##?????????# | | ?????## ## #!!!"# A##????????? | | ?????#" % ???????? | | ??????# ! ^ H ?????????? | | ??????# ]% ???????????? | | ??????#!! ##[cc#===##?????????????????? | | ??????#!! ##[[@c===#??????????????????? | | ??????### ##########??????????????????? | | ???????# #?????????????????????????? | | ???????# #?????????????????????????? | | ???????# #?????????????????????????? | | ???????## ###?????????????????????????? | | ???????# #??????????????#??????????? | | ???????# #?????????????[#??????????? | | ???????## ##########???? [[???????????? | | ??????### ###!!# #??? #????????????? | | ??????#"" ## !# ### ###!!!#??????? | | ????""""" ???? | | ????"##"" ???? | | ??????#"""""## # # # #??????? | | ??????#"""""######### #??????????? | | ??????####"##?????????#######??????????? | | ?????????#"#???????????????????????????? | | ?????????""????????????????????????????? | | ???????????????????????????????????????? | | ???????????????????????????????????????? | | ???????????????????????????????????????? | | ???????????????????????????????????????? | | ???????????????????????????????????????? | | | | | +----------------------------------------------------+ Best States ------------- Heat Dissipation 40 Energy Generation 31 Energy Capacity 750 Matter Stores 300 Matter Capacity 300 Sight Range 23 Robot Scan Range 16 Terrain Scan Density 10 Jamming Range 14 Additional Mass Support 9 Corruption Containment 8 Armor Coverage 400 Evasion (%) 65 Target Analysis 7 Recoil Reduction 2 Offensive Hacking 21 Defensive Hacking 21 Item Schematics ----------------- Flamer | -7/Zion | Free Enh. Flamer | -7/Zion | Free Phase Cannon | -7/Zion | Archive Mak. Sword | -7/Zion | Archive Matter Compressor | -7/Zion | Archive Mapping Drone Bay | -7/Zion | Archive Energy Well | -7/Zion | Archive Bore Cannon | -7/Zion | Archive Arc Projector | -7/Zion | Archive Imp. Titanium Leg | -7/Zion | Archive Field Propulsion Drive | -7/Zion | Archive Armor Integrity Analyzer | -7/Zion | Archive Adv. Heat Sink | -7/Zion | Archive Mak. Terrain Scan Processor | -7/Zion | Archive Fusion Compressor | -7/Zion | Archive Spear | -7/Zion | Archive Lrn. Phase Cannon | -7/Zion | Archive Robot Schematics ------------------ H-55 Commando | -7/Zion | Archive S-27 Virus | -7/Zion | Archive I-36 Angel | -6/Factory | Z-intel R-10 Processor | -6/Factory | Z-intel B-48 Gladiator | -6/Factory | Z-intel A-02 Transporter | -6/Factory | Z-intel Fabricated ------------ Nothing Alien Tech Used ----------------- None Achievements -------------- None Challenges ------------ None Game ------ Seed CoreHeavyRigger Manual? 1 Play Time 01:18:33 Cumulative 442.4 hours Start 2023.03.10 @ 15:52:21 End 2023.03.10 @ 17:45:05 Sessions 3 Manual Loads 0 Difficulty Rogue Special Mode None Game No. 496 Rogue 496 Adventurer 0 Explorer 0 Win Type - Total 0 Types 0/0/0/0/0/0/0/0/0 Lore% 59 Gallery% 79 Achievement% 64 Wizard Run 0 Options --------- ASCII 0 Keyboard 0 Movement Mouse Keybinds 0 Fullscreen 2 Font 24/Smallcaps Map View 76x50 Tactical HUD 1 Map Filters NONE Filters NONE Steam 1 RUN: eaf4a102-d206-448b-9221-9766b0e8d0cb